{"text_format":"1","workbook":"xlsx","n_sheets":12,"sheets":["Menü","Beschreibung","Berechnung Gleichg.preis","Ergebnistabelle Gleichg.preis","Reifezahlrechner","Infos zu Trocknung u. Schwund","Trocknungstabelle","Sorten","Beraterdaten","Entzüge und Nährstoffpreise","Standardwerte","Parameter Reifezahl"],"not_rendered":{"charts":0,"images":1,"macros":1,"external_links":0,"defined_names":10,"comments":1,"pivot_tables":0},"unopened":[],"bounds":{"document_bytes":16777216,"sheet_cells":100000,"rows_first":2000,"rows_last":500,"rows_between":2000,"halvings":0,"cell_chars":16384,"cell_head_chars":4096},"cells_cut":0,"cells_raw":0,"read":"whole","date_system":"1900"}

{"sheet":"Menü","index":0,"n_rows":15,"n_cols":4,"rows_kept":15,"cut":false,"hidden":false,"merged":[[14,0,14,3]]}
[null,{"$error":"#VALUE!"}]
[null,"Wirtschaftlichkeitsrechner Maisanbau"]
[null,"MENÜ (Auswahl per Doppelklick)"]
[]
[null,"Beraterdaten",null,"Infos zu Trocknung und Schwund"]
[]
[null,"Beschreibung/Nutzungshinweise",null,"Trocknungstabelle"]
[]
[null,"Berechnung Gleichgewichtspreis",null,"Sortentypen"]
[]
[null,"Ergebnistabelle Gleichg.preis",null,"Entzüge und Nährstoffpreise"]
[]
[null,"Reifezahlrechner",null,"Parameter Reifezahl"]
[]
["Ansprechpartner: Bernhard Blackert, Fachgebiet 11.1 \"Beratungsteam Ökonomie\"\nKontakt:                  0561/7299-330, Bernhard.Blackert@LLH.hessen.de"]

{"sheet":"Beschreibung","index":1,"n_rows":27,"n_cols":2,"rows_kept":27,"cut":false,"hidden":false,"merged":[[26,0,26,1],[2,0,2,2],[4,1,4,2],[6,1,6,2],[12,1,12,2],[16,1,16,2],[24,1,24,2],[25,1,25,2]]}
[null,{"$error":"#VALUE!"}]
[null,"Wirtschaftlichkeitsrechner Maisanbau"]
["Mit dieser Excel-Anwendung können drei Fragestellungen bearbeitet werden:"]
[]
["1)"," Ist bei der angebauten Sorte bzw. dem Sortentyp eine Nutzung als Körnermais oder als \n Energie- bzw. Silomais wirtschaftlicher?"]
[]
["2) ","Welcher Preis ist für die Vermarktung als Feuchtmais erforderlich, um gegenüber der Vermarktung als trockenes Korn keinen ökonomischen Nachteil zu haben?"]
[]
["3)","Ist aufgrund hoher Trocknungskosten im Körnermaisanbau der Anbau von Sorten mit niedriger Reifezahl wirtschaftlicher als der Anbau ertragreicherer Sorten mit hoher Reifezahl?"]
[]
["zu Fragestellung 1:"]
[]
[null,"In Jahren mit hohen Maiserträgen stellt sich oft die Frage, ob die letzten Hektar noch in das Silo gezwängt oder lieber als Körnermais genutzt werden sollen. \nBei normalem Kulturzustand besteht eine relativ feste Beziehung zwischen Gesamttrocken-masseertrag und Trockenmasseertrag Korn. Durch Vorgabe des Sortentyps kann deshalb bei einem geschätzten Trockenmasseertrag des Bestandes  die Ertragserwartung Korn ermittelt werden. \nDie Anwendung errechnet unter Berücksichtigung der Kosten für Trocknung, Ernte, Abtransport des Erntegutes und mulchen der Stengel den Gleichgewichtspreis für Körnermais aus. Bei diesem Preis ist die Wirtschaftlichkeit von Körner- und Ganzpflanzennutzung gleich. In die Berechnung fließen auch die Kosten unterschiedlicher Nährstoffentzüge unter Berücksichtigung von Gärrestrückführung ein."]
[]
["zu Fragestellung 2:"]
[]
[null,"Gelegentlich wird vom Handel für Körnermais auch die Vermarktung im erntefeuchten Zustand angeboten. Für diesen Fall liefert diese Anwendung den Gleichgewichtspreis für feuchte Ware bei gegebenem Preis für trockene Ware. Dabei wurde davon Ausgegangen, dass bei beiden Verfahren die gleichen Kosten für Abtransport des Erntegutes anfallen. Sollte dies nicht der Fall sein, z. B. wenn direkt am Feld auf die LKWs des Handels abgetankt werden kann, dann ergibt sich für Feuchtmais ein Preisvorteil je ha in Höhe der Kosten für Abtransport. Wenn diese Kosten z. B. 60,- € je ha betragen und die Erntemenge Feuchtmais 150 dt/ha, dann verringert sich der ermittelte Gleichgewichtspreis für Feuchtmais um 0,40 € je dt."]
[]
["zu Fragestellung 3:"]
[]
[null,"Als Grenzwert für die Druschreife von Körnermais gilt eine Kornfeuchte von 35%. Die Assimilateinlagerung in die Körner schließt zwischen 33% und 35% Kornfeuchte ab. Eine möglichst trockene Ernte reduziert den Bruchkornanteil und senkt die Trocknungskosten. Kornfeuchten unter 25 % (bei Sorten mit extrem niedrieger FAO 27 %) sind zur Ernte i.d.R. nicht erreichbar.\nUnterscheiden sich zwei Sorten um zehn Einheiten in der Reifezahl, bedeutet dies eine Differenz von 1% im Trockensubstanzgehalt des Kornes. Dies entspricht einer verzögerten oder beschleunigten Abreife von 1 bis 3 Tagen.\nBei der Betrachtung des Themas sind zwei Szenarien möglich, entweder werden die Sorten zu unterschiedlichen Terminen bei annähernd gleichen Feuchtegehalten, oder zum gleichen Termin mit unterschiedlichen Feuchten geerntet. Hier soll die zweite Möglichkeit betrachtet werden, da der Ertragsvorteil einer früheren Saat der Folgekultur (eventuell mit besseren Bodenverhältnissen) nur schwer quantifizierbar und damit ökonomisch bewertbar ist. \nWird zum gleichen Termin geerntet, so entscheidet der Preis und der mögliche Mehrertrag der Sorte mit höherer Reifezahl maßgeblich über die wirtschaftliche Vorzüglichkeit der verschiedenen Sorten. Im Excel-Arbeitsblatt wird als Ergebnis der nötige Mehrertrag der Sorte mit höherer Reifezahl bei gegebenem Preis ausgewiesen.\nBei der Berechnung wurden sowohl die unterschiedlichen Trocknungskosten, als auch die unterschiedlichen Nährstoffentzüge (monetär bewertet) berücksichtigt."]
[]
["Hinweise zur Nutzung der Anwendung"]
[]
[null,"Alle Preis- und Kostenangaben haben grundsätzlich ohne Vor- oder Umsatzsteuer zu erfolgen!\nAlle gelben Eingabefelder müssen ausgefüllt werden.\nVoreingestellt Werte sind überschreibbar!\nRechts neben dem Eingabebereich ist das Ergebnis der Kalkulation sichtbar.\nDie Ergebnistabelle kann über den entsprechenden Button auf der Seite Berechnung ausgedruckt werden. Hier ist das Ergebnis um verschiedene Kornfeuchtevarianten erweitert.Die Trocknungskostentabelle muss jährlich auf Aktualität geprüft und bei Bedarf angepasst werden."]
[]
["Ansprechpartner: Bernhard Blackert, Fachgebiet 11.1 \"Beratungsteam Ökonomie\"\nKontakt:                 0561/7299-330, Bernhard.Blackert@LLH.hessen.de"]

{"sheet":"Berechnung Gleichg.preis","index":2,"n_rows":37,"n_cols":10,"rows_kept":37,"cut":false,"hidden":false,"merged":[[0,1,0,3],[21,9,22,9],[18,9,19,9],[2,6,2,10],[6,0,6,4],[19,0,19,4],[2,0,2,4],[4,0,4,4],[3,0,3,4]]}
[null,{"$error":"#VALUE!"}]
[]
["Körner- oder Silonutzung?   Gleichgewichtspreis Körnermais?",null,null,null,null,null,"Ergebnisübersicht"]
[]
["Alle Preise und Kosten ohne Umsatz- und Vorsteuer angeben !"]
[]
["Eingaben zur Nutzung als Silomais/Biogasmais"]
[]
[null,"Sortentyp",null,"Körner spezial",null,null,null,"Ertrag Silonutzung dt FM/ha bei 32% TM",null,{"$f":"IF(G25=\"\",(D11/32*100*10),\"\")","v":406.25}]
[]
[null,"Ertragsschätzung Silonutzung in t TM/ha ",null,13,null,null,null,"Kornertrag feucht in dt/ha",null,{"$f":"IF(G25=\"\",(J13/(((D22-D24)*D26-1)*(-1))),\"\")","v":112.6086445853888}]
[]
[null,"Preis je t TM",null,80,null,null,null,"Kornertrag bei Regelfeuchte in dt/ha",null,{"$f":"IF(G25=\"\",(((D11*VLOOKUP(D9,Sorten!B3:C29,2,FALSE)/(1-D24)))*10),\"\")","v":89.186046511627922}]
[]
[null,"Höhe der Gärrestrücklieferung in % des Frischmasseertrages",null,0.75]
[null,null,null,null,null,null,null,"Gleichgewichtspreis Körnermais in €/dt",null,{"$f":"IF(G25=\"\",((((D11*D13)+(J11*VLOOKUP(D22,Trocknungstabelle!B6:C165,2,FALSE))+D28+D30+D32-'Entzüge und Nährstoffpreise'!D11))/(D11*VLOOKUP(D9,Sorten!B3:C29,2,FALSE)/(1-D24))/10),\"\")","v":20.662736039255002}]
[null,"Ausbringkosten Gärrest in €/m3",null,5.5]
[]
[null,null,null,null,null,null,null,"bereinigter Erlösvor-/nachteil je ha für Körnermais",null,{"$f":"IF(G25=\"\",((($D$11*VLOOKUP($D$9,Sorten!$B$3:$C$29,2)))/(1-D24)*10*$D$34-($D$11*VLOOKUP($D$9,Sorten!$B$3:$C$29,2))/(1-D24)*10*$J$16),\"\")","v":26.561497745649604}]
["Eingaben zur Nutzung als Körnermais",null,null,null,null,null,null,{"$f":"\"bei einem Marktpreis von \"&D34&\" €\"","v":"bei einem Marktpreis von 21 €"}]
[]
[null,"Kornfeuchte Erntegut in%",null,0.30000000000000004,null,null,null,"notwendiger Preis bei Vermarktung",null,{"$f":"IF(G25=\"\",((J13*D34-(J11*VLOOKUP(D22,Trocknungstabelle!B6:C165,2,FALSE)))/J11),\"\")","v":11.431999999999997}]
[null,null,null,null,null,null,null,"als feuchte Ware in €/dt"]
[null,"Regelfeuchte in %",null,0.14000000000000001]
[null,null,null,null,null,null,{"$f":"IF(OR(D9=\"\",D11=\"\",D13=\"\",D15=\"\",D17=\"\",D22=\"\",D24=\"\",D26=\"\",D28=\"\",D30=\"\",D32=\"\",D34=\"\"),\"Alle gelben Eingabefelder müssen ausgefüllt sein!\",\"\")","v":""}]
[null,"Schwundfaktor",null,1.3]
[]
[null,"Kosten Körnermaisernte in €/ha",null,180]
[]
[null,"Kosten Abtransport Körnermais in €/ha",null,75]
[]
[null,"evtl. Stengel mulchen in €/ha",null,0]
[]
[null,"aktueller Preis Körnermais, trockene Ware in €/dt",null,21]
[]
[]
[{"$f":"IF(Beraterdaten!C5=\"\",\"\",\"Kontakt: \"&Beraterdaten!C4&\" \"&Beraterdaten!C5&\", \"&Beraterdaten!C6&\", \"&Beraterdaten!C7&\", Tel.: \"&Beraterdaten!C8&\", \"&Beraterdaten!C4&\".\"&Beraterdaten!C5&\"@LLH.hessen.de\")","v":"Kontakt: Bernhard Blackert, FG 11.1 \"Beratungsteam Ökonomie\", Zentrale Kassel, Tel.: 0561/7299-330, Bernhard.Blackert@LLH.hessen.de"}]

{"sheet":"Ergebnistabelle Gleichg.preis","index":3,"n_rows":21,"n_cols":12,"rows_kept":21,"cut":false,"hidden":false,"merged":[[7,1,7,11],[10,4,10,6],[11,4,11,6],[0,1,0,5],[10,9,10,10],[11,9,11,10],[2,1,2,11],[4,1,4,11],[5,1,5,11]]}
[null,{"$error":"#VALUE!"}]
[]
[null,"Gleichgewichtspreis für Körnermais bei gegebenem Ertrag und Preis für Silomais"]
[]
[null,"Gleichgewichtspreis für Feuchtmais bei gegebenem Preis für Körnermais (trockene Ware)"]
[null,"Bereinigter Erlösvor- bzw. - nachteil je ha bei gegebenem Marktpreis für Körnermais"]
[]
[null,{"$f":"CONCATENATE(\"Ergebnistabelle für eine Sorte des Typs \",\"'\",'Berechnung Gleichg.preis'!D9,\"'\")","v":"Ergebnistabelle für eine Sorte des Typs 'Körner spezial'"}]
[]
[]
[null,"Ertrag Silomais TM in t/ha",{"$f":"'Berechnung Gleichg.preis'!$D$11","v":13},null,"Kornertrag feucht in dt",null,null,{"$f":"'Berechnung Gleichg.preis'!$J$11","v":112.6086445853888},null,"Preis Silomais je t TM",null,{"$f":"'Berechnung Gleichg.preis'!$D$13","v":80}]
[null,"Ertrag Silomais 32 % TM dt/ha",{"$f":"'Berechnung Gleichg.preis'!$J$9","v":406.25},null,"Kornertrag trocken in dt",null,null,{"$f":"'Berechnung Gleichg.preis'!$J$13","v":89.186046511627922},null,"Preis Körnermais je dt",null,{"$f":"'Berechnung Gleichg.preis'!$D$34","v":21}]
[]
[null,"Kornfeuchte in %",{"$f":"'Berechnung Gleichg.preis'!D22","v":0.30000000000000004},{"$f":"Trocknungstabelle!B46","v":0.25},{"$f":"Trocknungstabelle!B56","v":0.26},{"$f":"Trocknungstabelle!B66","v":0.27},0.28000000000000003,0.28999999999999998,{"$f":"'Berechnung Gleichg.preis'!D22","v":0.30000000000000004},{"$f":"Trocknungstabelle!B106","v":0.31000000000000005},{"$f":"Trocknungstabelle!B116","v":0.32000000000000006},{"$f":"Trocknungstabelle!B126","v":0.33000000000000007}]
[null,"Gleichgewichtpreis für Körnermais\nje dt",{"$f":"IF('Berechnung Gleichg.preis'!$J$16=\"\",\"\",((('Berechnung Gleichg.preis'!$D$11*'Berechnung Gleichg.preis'!$D$13)+(('Berechnung Gleichg.preis'!$D$11*VLOOKUP('Berechnung Gleichg.preis'!$D$9,Sorten!$B$3:$C$29,2,FALSE)/(1-'Berechnung Gleichg.preis'!$D$24))/(((C14-'Berechnung Gleichg.preis'!$D$24)*'Berechnung Gleichg.preis'!$D$26-1)*(-1)))*(VLOOKUP(C14,Trocknungstabelle!$B$6:$C$165,2)*10)+'Berechnung Gleichg.preis'!$D$28+'Berechnung Gleichg.preis'!$D$30+'Berechnung Gleichg.preis'!$D$32-'Entzüge und Nährstoffpreise'!$D$11))/('Berechnung Gleichg.preis'!$D$11*VLOOKUP('Berechnung Gleichg.preis'!$D$9,Sorten!$B$3:$C$29,2,FALSE)/(1-'Berechnung Gleichg.preis'!$D$24))/10)","v":20.662736039255002},{"$f":"IF('Berechnung Gleichg.preis'!$J$16=\"\",\"\",((('Berechnung Gleichg.preis'!$D$11*'Berechnung Gleichg.preis'!$D$13)+(('Berechnung Gleichg.preis'!$D$11*VLOOKUP('Berechnung Gleichg.preis'!$D$9,Sorten!$B$3:$C$29,2,FALSE)/(1-'Berechnung Gleichg.preis'!$D$24))/(((D14-'Berechnung Gleichg.preis'!$D$24)*'Berechnung Gleichg.preis'!$D$26-1)*(-1)))*(VLOOKUP(D14,Trocknungstabelle!$B$6:$C$165,2)*10)+'Berechnung Gleichg.preis'!$D$28+'Berechnung Gleichg.preis'!$D$30+'Berechnung Gleichg.preis'!$D$32-'Entzüge und Nährstoffpreise'!$D$11))/('Berechnung Gleichg.preis'!$D$11*VLOOKUP('Berechnung Gleichg.preis'!$D$9,Sorten!$B$3:$C$29,2,FALSE)/(1-'Berechnung Gleichg.preis'!$D$24))/10)","v":19.347954619456075},{"$f":"IF('Berechnung Gleichg.preis'!$J$16=\"\",\"\",((('Berechnung Gleichg.preis'!$D$11*'Berechnung Gleichg.preis'!$D$13)+(('Berechnung Gleichg.preis'!$D$11*VLOOKUP('Berechnung Gleichg.preis'!$D$9,Sorten!$B$3:$C$29,2,FALSE)/(1-'Berechnung Gleichg.preis'!$D$24))/(((E14-'Berechnung Gleichg.preis'!$D$24)*'Berechnung Gleichg.preis'!$D$26-1)*(-1)))*(VLOOKUP(E14,Trocknungstabelle!$B$6:$C$165,2)*10)+'Berechnung Gleichg.preis'!$D$28+'Berechnung Gleichg.preis'!$D$30+'Berechnung Gleichg.preis'!$D$32-'Entzüge und Nährstoffpreise'!$D$11))/('Berechnung Gleichg.preis'!$D$11*VLOOKUP('Berechnung Gleichg.preis'!$D$9,Sorten!$B$3:$C$29,2,FALSE)/(1-'Berechnung Gleichg.preis'!$D$24))/10)","v":19.594709805351989},{"$f":"IF('Berechnung Gleichg.preis'!$J$16=\"\",\"\",((('Berechnung Gleichg.preis'!$D$11*'Berechnung Gleichg.preis'!$D$13)+(('Berechnung Gleichg.preis'!$D$11*VLOOKUP('Berechnung Gleichg.preis'!$D$9,Sorten!$B$3:$C$29,2,FALSE)/(1-'Berechnung Gleichg.preis'!$D$24))/(((F14-'Berechnung Gleichg.preis'!$D$24)*'Berechnung Gleichg.preis'!$D$26-1)*(-1)))*(VLOOKUP(F14,Trocknungstabelle!$B$6:$C$165,2)*10)+'Berechnung Gleichg.preis'!$D$28+'Berechnung Gleichg.preis'!$D$30+'Berechnung Gleichg.preis'!$D$32-'Entzüge und Nährstoffpreise'!$D$11))/('Berechnung Gleichg.preis'!$D$11*VLOOKUP('Berechnung Gleichg.preis'!$D$9,Sorten!$B$3:$C$29,2,FALSE)/(1-'Berechnung Gleichg.preis'!$D$24))/10)","v":19.849185370108664},{"$f":"IF('Berechnung Gleichg.preis'!$J$16=\"\",\"\",((('Berechnung Gleichg.preis'!$D$11*'Berechnung Gleichg.preis'!$D$13)+(('Berechnung Gleichg.preis'!$D$11*VLOOKUP('Berechnung Gleichg.preis'!$D$9,Sorten!$B$3:$C$29,2,FALSE)/(1-'Berechnung Gleichg.preis'!$D$24))/(((G14-'Berechnung Gleichg.preis'!$D$24)*'Berechnung Gleichg.preis'!$D$26-1)*(-1)))*(VLOOKUP(G14,Trocknungstabelle!$B$6:$C$165,2)*10)+'Berechnung Gleichg.preis'!$D$28+'Berechnung Gleichg.preis'!$D$30+'Berechnung Gleichg.preis'!$D$32-'Entzüge und Nährstoffpreise'!$D$11))/('Berechnung Gleichg.preis'!$D$11*VLOOKUP('Berechnung Gleichg.preis'!$D$9,Sorten!$B$3:$C$29,2,FALSE)/(1-'Berechnung Gleichg.preis'!$D$24))/10)","v":20.111749400248804},{"$f":"IF('Berechnung Gleichg.preis'!$J$16=\"\",\"\",((('Berechnung Gleichg.preis'!$D$11*'Berechnung Gleichg.preis'!$D$13)+(('Berechnung Gleichg.preis'!$D$11*VLOOKUP('Berechnung Gleichg.preis'!$D$9,Sorten!$B$3:$C$29,2,FALSE)/(1-'Berechnung Gleichg.preis'!$D$24))/(((H14-'Berechnung Gleichg.preis'!$D$24)*'Berechnung Gleichg.preis'!$D$26-1)*(-1)))*(VLOOKUP(H14,Trocknungstabelle!$B$6:$C$165,2)*10)+'Berechnung Gleichg.preis'!$D$28+'Berechnung Gleichg.preis'!$D$30+'Berechnung Gleichg.preis'!$D$32-'Entzüge und Nährstoffpreise'!$D$11))/('Berechnung Gleichg.preis'!$D$11*VLOOKUP('Berechnung Gleichg.preis'!$D$9,Sorten!$B$3:$C$29,2,FALSE)/(1-'Berechnung Gleichg.preis'!$D$24))/10)","v":20.208880715834461},{"$f":"IF('Berechnung Gleichg.preis'!$J$16=\"\",\"\",((('Berechnung Gleichg.preis'!$D$11*'Berechnung Gleichg.preis'!$D$13)+(('Berechnung Gleichg.preis'!$D$11*VLOOKUP('Berechnung Gleichg.preis'!$D$9,Sorten!$B$3:$C$29,2,FALSE)/(1-'Berechnung Gleichg.preis'!$D$24))/(((I14-'Berechnung Gleichg.preis'!$D$24)*'Berechnung Gleichg.preis'!$D$26-1)*(-1)))*(VLOOKUP(I14,Trocknungstabelle!$B$6:$C$165,2)*10)+'Berechnung Gleichg.preis'!$D$28+'Berechnung Gleichg.preis'!$D$30+'Berechnung Gleichg.preis'!$D$32-'Entzüge und Nährstoffpreise'!$D$11))/('Berechnung Gleichg.preis'!$D$11*VLOOKUP('Berechnung Gleichg.preis'!$D$9,Sorten!$B$3:$C$29,2,FALSE)/(1-'Berechnung Gleichg.preis'!$D$24))/10)","v":20.662736039255002},{"$f":"IF('Berechnung Gleichg.preis'!$J$16=\"\",\"\",((('Berechnung Gleichg.preis'!$D$11*'Berechnung Gleichg.preis'!$D$13)+(('Berechnung Gleichg.preis'!$D$11*VLOOKUP('Berechnung Gleichg.preis'!$D$9,Sorten!$B$3:$C$29,2,FALSE)/(1-'Berechnung Gleichg.preis'!$D$24))/(((J14-'Berechnung Gleichg.preis'!$D$24)*'Berechnung Gleichg.preis'!$D$26-1)*(-1)))*(VLOOKUP(J14,Trocknungstabelle!$B$6:$C$165,2)*10)+'Berechnung Gleichg.preis'!$D$28+'Berechnung Gleichg.preis'!$D$30+'Berechnung Gleichg.preis'!$D$32-'Entzüge und Nährstoffpreise'!$D$11))/('Berechnung Gleichg.preis'!$D$11*VLOOKUP('Berechnung Gleichg.preis'!$D$9,Sorten!$B$3:$C$29,2,FALSE)/(1-'Berechnung Gleichg.preis'!$D$24))/10)","v":20.964858677706264},{"$f":"IF('Berechnung Gleichg.preis'!$J$16=\"\",\"\",((('Berechnung Gleichg.preis'!$D$11*'Berechnung Gleichg.preis'!$D$13)+(('Berechnung Gleichg.preis'!$D$11*VLOOKUP('Berechnung Gleichg.preis'!$D$9,Sorten!$B$3:$C$29,2,FALSE)/(1-'Berechnung Gleichg.preis'!$D$24))/(((K14-'Berechnung Gleichg.preis'!$D$24)*'Berechnung Gleichg.preis'!$D$26-1)*(-1)))*(VLOOKUP(K14,Trocknungstabelle!$B$6:$C$165,2)*10)+'Berechnung Gleichg.preis'!$D$28+'Berechnung Gleichg.preis'!$D$30+'Berechnung Gleichg.preis'!$D$32-'Entzüge und Nährstoffpreise'!$D$11))/('Berechnung Gleichg.preis'!$D$11*VLOOKUP('Berechnung Gleichg.preis'!$D$9,Sorten!$B$3:$C$29,2,FALSE)/(1-'Berechnung Gleichg.preis'!$D$24))/10)","v":21.277236131561882},{"$f":"IF('Berechnung Gleichg.preis'!$J$16=\"\",\"\",((('Berechnung Gleichg.preis'!$D$11*'Berechnung Gleichg.preis'!$D$13)+(('Berechnung Gleichg.preis'!$D$11*VLOOKUP('Berechnung Gleichg.preis'!$D$9,Sorten!$B$3:$C$29,2,FALSE)/(1-'Berechnung Gleichg.preis'!$D$24))/(((L14-'Berechnung Gleichg.preis'!$D$24)*'Berechnung Gleichg.preis'!$D$26-1)*(-1)))*(VLOOKUP(L14,Trocknungstabelle!$B$6:$C$165,2)*10)+'Berechnung Gleichg.preis'!$D$28+'Berechnung Gleichg.preis'!$D$30+'Berechnung Gleichg.preis'!$D$32-'Entzüge und Nährstoffpreise'!$D$11))/('Berechnung Gleichg.preis'!$D$11*VLOOKUP('Berechnung Gleichg.preis'!$D$9,Sorten!$B$3:$C$29,2,FALSE)/(1-'Berechnung Gleichg.preis'!$D$24))/10)","v":21.600399526719286}]
[null,{"$f":"\"Gleichgewichtpreis für Feuchtmais* bei einem Preis für trocknen Mais von \"&'Berechnung Gleichg.preis'!D34&\" €\"","v":"Gleichgewichtpreis für Feuchtmais* bei einem Preis für trocknen Mais von 21 €"},{"$f":"IF('Berechnung Gleichg.preis'!$D$34=\"\",\"\",(10*'Berechnung Gleichg.preis'!$D$34-((10/(((C14-'Berechnung Gleichg.preis'!$D$24)*'Berechnung Gleichg.preis'!$D$26-1)*(-1)))*VLOOKUP(C14,Trocknungstabelle!$B$6:$C$165,2)))/(10/(((C14-'Berechnung Gleichg.preis'!$D$24)*'Berechnung Gleichg.preis'!$D$26-1)*(-1))))","v":11.431999999999997},{"$f":"IF('Berechnung Gleichg.preis'!$D$34=\"\",\"\",(10*'Berechnung Gleichg.preis'!$D$34-((10/(((D14-'Berechnung Gleichg.preis'!$D$24)*'Berechnung Gleichg.preis'!$D$26-1)*(-1)))*VLOOKUP(D14,Trocknungstabelle!$B$6:$C$165,2)))/(10/(((D14-'Berechnung Gleichg.preis'!$D$24)*'Berechnung Gleichg.preis'!$D$26-1)*(-1))))","v":13.497},{"$f":"IF('Berechnung Gleichg.preis'!$D$34=\"\",\"\",(10*'Berechnung Gleichg.preis'!$D$34-((10/(((E14-'Berechnung Gleichg.preis'!$D$24)*'Berechnung Gleichg.preis'!$D$26-1)*(-1)))*VLOOKUP(E14,Trocknungstabelle!$B$6:$C$165,2)))/(10/(((E14-'Berechnung Gleichg.preis'!$D$24)*'Berechnung Gleichg.preis'!$D$26-1)*(-1))))","v":13.084},{"$f":"IF('Berechnung Gleichg.preis'!$D$34=\"\",\"\",(10*'Berechnung Gleichg.preis'!$D$34-((10/(((F14-'Berechnung Gleichg.preis'!$D$24)*'Berechnung Gleichg.preis'!$D$26-1)*(-1)))*VLOOKUP(F14,Trocknungstabelle!$B$6:$C$165,2)))/(10/(((F14-'Berechnung Gleichg.preis'!$D$24)*'Berechnung Gleichg.preis'!$D$26-1)*(-1))))","v":12.670999999999999},{"$f":"IF('Berechnung Gleichg.preis'!$D$34=\"\",\"\",(10*'Berechnung Gleichg.preis'!$D$34-((10/(((G14-'Berechnung Gleichg.preis'!$D$24)*'Berechnung Gleichg.preis'!$D$26-1)*(-1)))*VLOOKUP(G14,Trocknungstabelle!$B$6:$C$165,2)))/(10/(((G14-'Berechnung Gleichg.preis'!$D$24)*'Berechnung Gleichg.preis'!$D$26-1)*(-1))))","v":12.257999999999999},{"$f":"IF('Berechnung Gleichg.preis'!$D$34=\"\",\"\",(10*'Berechnung Gleichg.preis'!$D$34-((10/(((H14-'Berechnung Gleichg.preis'!$D$24)*'Berechnung Gleichg.preis'!$D$26-1)*(-1)))*VLOOKUP(H14,Trocknungstabelle!$B$6:$C$165,2)))/(10/(((H14-'Berechnung Gleichg.preis'!$D$24)*'Berechnung Gleichg.preis'!$D$26-1)*(-1))))","v":11.985000000000003},{"$f":"IF('Berechnung Gleichg.preis'!$D$34=\"\",\"\",(10*'Berechnung Gleichg.preis'!$D$34-((10/(((I14-'Berechnung Gleichg.preis'!$D$24)*'Berechnung Gleichg.preis'!$D$26-1)*(-1)))*VLOOKUP(I14,Trocknungstabelle!$B$6:$C$165,2)))/(10/(((I14-'Berechnung Gleichg.preis'!$D$24)*'Berechnung Gleichg.preis'!$D$26-1)*(-1))))","v":11.431999999999997},{"$f":"IF('Berechnung Gleichg.preis'!$D$34=\"\",\"\",(10*'Berechnung Gleichg.preis'!$D$34-((10/(((J14-'Berechnung Gleichg.preis'!$D$24)*'Berechnung Gleichg.preis'!$D$26-1)*(-1)))*VLOOKUP(J14,Trocknungstabelle!$B$6:$C$165,2)))/(10/(((J14-'Berechnung Gleichg.preis'!$D$24)*'Berechnung Gleichg.preis'!$D$26-1)*(-1))))","v":11.008999999999999},{"$f":"IF('Berechnung Gleichg.preis'!$D$34=\"\",\"\",(10*'Berechnung Gleichg.preis'!$D$34-((10/(((K14-'Berechnung Gleichg.preis'!$D$24)*'Berechnung Gleichg.preis'!$D$26-1)*(-1)))*VLOOKUP(K14,Trocknungstabelle!$B$6:$C$165,2)))/(10/(((K14-'Berechnung Gleichg.preis'!$D$24)*'Berechnung Gleichg.preis'!$D$26-1)*(-1))))","v":10.585999999999997},{"$f":"IF('Berechnung Gleichg.preis'!$D$34=\"\",\"\",(10*'Berechnung Gleichg.preis'!$D$34-((10/(((L14-'Berechnung Gleichg.preis'!$D$24)*'Berechnung Gleichg.preis'!$D$26-1)*(-1)))*VLOOKUP(L14,Trocknungstabelle!$B$6:$C$165,2)))/(10/(((L14-'Berechnung Gleichg.preis'!$D$24)*'Berechnung Gleichg.preis'!$D$26-1)*(-1))))","v":10.162999999999995}]
[null,{"$f":"\"Erlösvor- bzw. -nachteil je ha für Körnermais, bei einem Marktpreis \nvon \"&'Berechnung Gleichg.preis'!D34&\" €\"","v":"Erlösvor- bzw. -nachteil je ha für Körnermais, bei einem Marktpreis \nvon 21 €"},{"$f":"IF('Berechnung Gleichg.preis'!$D$34=\"\",\"\",(('Berechnung Gleichg.preis'!$D$11*VLOOKUP('Berechnung Gleichg.preis'!$D$9,Sorten!$B$3:$C$29,2)))/(1-'Berechnung Gleichg.preis'!$D$24)*10*'Berechnung Gleichg.preis'!$D$34-('Berechnung Gleichg.preis'!$D$11*VLOOKUP('Berechnung Gleichg.preis'!$D$9,Sorten!$B$3:$C$29,2))/(1-'Berechnung Gleichg.preis'!$D$24)*10*C15)","v":26.561497745649604},{"$f":"IF('Berechnung Gleichg.preis'!$D$34=\"\",\"\",(('Berechnung Gleichg.preis'!$D$11*VLOOKUP('Berechnung Gleichg.preis'!$D$9,Sorten!$B$3:$C$29,2)))/(1-'Berechnung Gleichg.preis'!$D$24)*10*'Berechnung Gleichg.preis'!$D$34-('Berechnung Gleichg.preis'!$D$11*VLOOKUP('Berechnung Gleichg.preis'!$D$9,Sorten!$B$3:$C$29,2))/(1-'Berechnung Gleichg.preis'!$D$24)*10*D15)","v":130.10817863283705},{"$f":"IF('Berechnung Gleichg.preis'!$D$34=\"\",\"\",(('Berechnung Gleichg.preis'!$D$11*VLOOKUP('Berechnung Gleichg.preis'!$D$9,Sorten!$B$3:$C$29,2)))/(1-'Berechnung Gleichg.preis'!$D$24)*10*'Berechnung Gleichg.preis'!$D$34-('Berechnung Gleichg.preis'!$D$11*VLOOKUP('Berechnung Gleichg.preis'!$D$9,Sorten!$B$3:$C$29,2))/(1-'Berechnung Gleichg.preis'!$D$24)*10*E15)","v":110.67477312036021},{"$f":"IF('Berechnung Gleichg.preis'!$D$34=\"\",\"\",(('Berechnung Gleichg.preis'!$D$11*VLOOKUP('Berechnung Gleichg.preis'!$D$9,Sorten!$B$3:$C$29,2)))/(1-'Berechnung Gleichg.preis'!$D$24)*10*'Berechnung Gleichg.preis'!$D$34-('Berechnung Gleichg.preis'!$D$11*VLOOKUP('Berechnung Gleichg.preis'!$D$9,Sorten!$B$3:$C$29,2))/(1-'Berechnung Gleichg.preis'!$D$24)*10*F15)","v":90.633342886674654},{"$f":"IF('Berechnung Gleichg.preis'!$D$34=\"\",\"\",(('Berechnung Gleichg.preis'!$D$11*VLOOKUP('Berechnung Gleichg.preis'!$D$9,Sorten!$B$3:$C$29,2)))/(1-'Berechnung Gleichg.preis'!$D$24)*10*'Berechnung Gleichg.preis'!$D$34-('Berechnung Gleichg.preis'!$D$11*VLOOKUP('Berechnung Gleichg.preis'!$D$9,Sorten!$B$3:$C$29,2))/(1-'Berechnung Gleichg.preis'!$D$24)*10*G15)","v":69.954898978079655},{"$f":"IF('Berechnung Gleichg.preis'!$D$34=\"\",\"\",(('Berechnung Gleichg.preis'!$D$11*VLOOKUP('Berechnung Gleichg.preis'!$D$9,Sorten!$B$3:$C$29,2)))/(1-'Berechnung Gleichg.preis'!$D$24)*10*'Berechnung Gleichg.preis'!$D$34-('Berechnung Gleichg.preis'!$D$11*VLOOKUP('Berechnung Gleichg.preis'!$D$9,Sorten!$B$3:$C$29,2))/(1-'Berechnung Gleichg.preis'!$D$24)*10*H15)","v":62.305243158758003},{"$f":"IF('Berechnung Gleichg.preis'!$D$34=\"\",\"\",(('Berechnung Gleichg.preis'!$D$11*VLOOKUP('Berechnung Gleichg.preis'!$D$9,Sorten!$B$3:$C$29,2)))/(1-'Berechnung Gleichg.preis'!$D$24)*10*'Berechnung Gleichg.preis'!$D$34-('Berechnung Gleichg.preis'!$D$11*VLOOKUP('Berechnung Gleichg.preis'!$D$9,Sorten!$B$3:$C$29,2))/(1-'Berechnung Gleichg.preis'!$D$24)*10*I15)","v":26.561497745649604},{"$f":"IF('Berechnung Gleichg.preis'!$D$34=\"\",\"\",(('Berechnung Gleichg.preis'!$D$11*VLOOKUP('Berechnung Gleichg.preis'!$D$9,Sorten!$B$3:$C$29,2)))/(1-'Berechnung Gleichg.preis'!$D$24)*10*'Berechnung Gleichg.preis'!$D$34-('Berechnung Gleichg.preis'!$D$11*VLOOKUP('Berechnung Gleichg.preis'!$D$9,Sorten!$B$3:$C$29,2))/(1-'Berechnung Gleichg.preis'!$D$24)*10*J15)","v":2.7675834406450122},{"$f":"IF('Berechnung Gleichg.preis'!$D$34=\"\",\"\",(('Berechnung Gleichg.preis'!$D$11*VLOOKUP('Berechnung Gleichg.preis'!$D$9,Sorten!$B$3:$C$29,2)))/(1-'Berechnung Gleichg.preis'!$D$24)*10*'Berechnung Gleichg.preis'!$D$34-('Berechnung Gleichg.preis'!$D$11*VLOOKUP('Berechnung Gleichg.preis'!$D$9,Sorten!$B$3:$C$29,2))/(1-'Berechnung Gleichg.preis'!$D$24)*10*K15)","v":-21.83395719847249},{"$f":"IF('Berechnung Gleichg.preis'!$D$34=\"\",\"\",(('Berechnung Gleichg.preis'!$D$11*VLOOKUP('Berechnung Gleichg.preis'!$D$9,Sorten!$B$3:$C$29,2)))/(1-'Berechnung Gleichg.preis'!$D$24)*10*'Berechnung Gleichg.preis'!$D$34-('Berechnung Gleichg.preis'!$D$11*VLOOKUP('Berechnung Gleichg.preis'!$D$9,Sorten!$B$3:$C$29,2))/(1-'Berechnung Gleichg.preis'!$D$24)*10*L15)","v":-47.284953424066543}]
[null,"* Kann direkt vom Mähdrescher auf Transportfahrzeuge des Handels verladen werden, entsteht eine Kostenersparnis von ca. 75,- €/ha. "]
[null,{"$f":"\"   Die ausgewiesenen Gleichgewichtspreise verringern sich in der gerechneten Konstellation um \"&ROUND(75/H11,2)&\" € je dt.\"","v":"   Die ausgewiesenen Gleichgewichtspreise verringern sich in der gerechneten Konstellation um 0,67 € je dt."}]
[]
[{"$f":"IF(Beraterdaten!C5=\"\",\"\",\"Kontakt: \"&Beraterdaten!C4&\" \"&Beraterdaten!C5&\", \"&Beraterdaten!C6&\", \"&Beraterdaten!C7&\", Tel.: \"&Beraterdaten!C8&\", \"&Beraterdaten!C4&\".\"&Beraterdaten!C5&\"@LLH.hessen.de\")","v":"Kontakt: Bernhard Blackert, FG 11.1 \"Beratungsteam Ökonomie\", Zentrale Kassel, Tel.: 0561/7299-330, Bernhard.Blackert@LLH.hessen.de"}]

{"sheet":"Reifezahlrechner","index":4,"n_rows":53,"n_cols":14,"rows_kept":53,"cut":false,"hidden":false,"merged":[[2,1,2,13],[19,13,20,13],[10,4,10,5],[12,4,12,5],[19,6,20,6],[19,7,20,7],[19,8,20,8],[19,9,20,9],[19,10,20,10],[19,11,20,11],[19,12,20,12],[14,0,15,0],[19,2,20,2],[19,3,20,3],[19,4,20,4],[19,5,20,5]]}
[null,{"$error":"#VALUE!"}]
[null,"Wirtschaftlichkeitsrechner Maisanbau"]
[null,"Notwendiger Mehrertrag für Körnermaissorten mit hoher Reifezahl gegenüber Sorten mit niedriger Reifezahl"]
[]
[]
[]
[]
[]
[]
[]
[null,"Reifezahl Sorte 1",250,null,"Erntefeuchte in %",null,0.33600000000000008,null,{"$f":"\"Trocknungskosten bei \"&C16&\" dt Ertrag\"","v":"Trocknungskosten bei 100 dt Ertrag"},null,null,null,{"$f":"IF(G11=\"\",\"\",$C$16/((100-(G11*100-14)*1.3)/100)*VLOOKUP(G11,Trocknungstabelle!B6:C196,2))","v":758.18572195383797}]
[]
[null,"Reifezahl Sorte 2",190,null,"Erntefeuchte in %",null,{"$f":"IF(I44<27,27,I44)/100","v":0.27600000000000008},null,{"$f":"\"Trocknungskosten bei \"&C16&\" dt Ertrag\"","v":"Trocknungskosten bei 100 dt Ertrag"},null,null,null,{"$f":"$C$16/((100-(G13*100-14)*1.3)/100)*VLOOKUP(G13,Trocknungstabelle!B6:C196,2)","v":580.66083576287667}]
[]
[]
[null,"Ertrag Sorte mit niedriger Reifezahl",100]
[]
[]
[null,"Preis je dt trockene Ware",13,14,15,16,17,18,19,20,21,22,23,24]
[null,"notwendiger Mehrertrag (trocken)",{"$f":"IF($C$16=\"\",\"\",$C$16*C53/$C$44+($C$16*C53/$C$44*'Parameter Reifezahl'!$G$3)/C19+(($C$16*C53/$C$44*'Parameter Reifezahl'!$G$3)/C19)*$C$52/C19+(($C$16*C53/$C$44*'Parameter Reifezahl'!$G$3)/C19)*$C$52/C19*'Parameter Reifezahl'!$G$3/C19+(($C$16*C53/$C$44*'Parameter Reifezahl'!$G$3)/C19)*$C$52/C19*'Parameter Reifezahl'!$G$3/C19*'Parameter Reifezahl'!G3/C19)","v":45.919701811831018},{"$f":"IF($C$16=\"\",\"\",$C$16*D53/$C$44+($C$16*D53/$C$44*'Parameter Reifezahl'!$G$3)/D19+(($C$16*D53/$C$44*'Parameter Reifezahl'!$G$3)/D19)*$C$52/D19+(($C$16*D53/$C$44*'Parameter Reifezahl'!$G$3)/D19)*$C$52/D19*'Parameter Reifezahl'!$G$3/D19+(($C$16*D53/$C$44*'Parameter Reifezahl'!$G$3)/D19)*$C$52/D19*'Parameter Reifezahl'!$G$3/D19*'Parameter Reifezahl'!H3/D19)","v":37.435648350684573},{"$f":"IF($C$16=\"\",\"\",$C$16*E53/$C$44+($C$16*E53/$C$44*'Parameter Reifezahl'!$G$3)/E19+(($C$16*E53/$C$44*'Parameter Reifezahl'!$G$3)/E19)*$C$52/E19+(($C$16*E53/$C$44*'Parameter Reifezahl'!$G$3)/E19)*$C$52/E19*'Parameter Reifezahl'!$G$3/E19+(($C$16*E53/$C$44*'Parameter Reifezahl'!$G$3)/E19)*$C$52/E19*'Parameter Reifezahl'!$G$3/E19*'Parameter Reifezahl'!I3/E19)","v":31.58236546227236},{"$f":"IF($C$16=\"\",\"\",$C$16*F53/$C$44+($C$16*F53/$C$44*'Parameter Reifezahl'!$G$3)/F19+(($C$16*F53/$C$44*'Parameter Reifezahl'!$G$3)/F19)*$C$52/F19+(($C$16*F53/$C$44*'Parameter Reifezahl'!$G$3)/F19)*$C$52/F19*'Parameter Reifezahl'!$G$3/F19+(($C$16*F53/$C$44*'Parameter Reifezahl'!$G$3)/F19)*$C$52/F19*'Parameter Reifezahl'!$G$3/F19*'Parameter Reifezahl'!J3/F19)","v":27.236986162275745},{"$f":"IF($C$16=\"\",\"\",$C$16*G53/$C$44+($C$16*G53/$C$44*'Parameter Reifezahl'!$G$3)/G19+(($C$16*G53/$C$44*'Parameter Reifezahl'!$G$3)/G19)*$C$52/G19+(($C$16*G53/$C$44*'Parameter Reifezahl'!$G$3)/G19)*$C$52/G19*'Parameter Reifezahl'!$G$3/G19+(($C$16*G53/$C$44*'Parameter Reifezahl'!$G$3)/G19)*$C$52/G19*'Parameter Reifezahl'!$G$3/G19*'Parameter Reifezahl'!K3/G19)","v":23.896015263436482},{"$f":"IF($C$16=\"\",\"\",$C$16*H53/$C$44+($C$16*H53/$C$44*'Parameter Reifezahl'!$G$3)/H19+(($C$16*H53/$C$44*'Parameter Reifezahl'!$G$3)/H19)*$C$52/H19+(($C$16*H53/$C$44*'Parameter Reifezahl'!$G$3)/H19)*$C$52/H19*'Parameter Reifezahl'!$G$3/H19+(($C$16*H53/$C$44*'Parameter Reifezahl'!$G$3)/H19)*$C$52/H19*'Parameter Reifezahl'!$G$3/H19*'Parameter Reifezahl'!L3/H19)","v":21.254899089228573},{"$f":"IF($C$16=\"\",\"\",$C$16*I53/$C$44+($C$16*I53/$C$44*'Parameter Reifezahl'!$G$3)/I19+(($C$16*I53/$C$44*'Parameter Reifezahl'!$G$3)/I19)*$C$52/I19+(($C$16*I53/$C$44*'Parameter Reifezahl'!$G$3)/I19)*$C$52/I19*'Parameter Reifezahl'!$G$3/I19+(($C$16*I53/$C$44*'Parameter Reifezahl'!$G$3)/I19)*$C$52/I19*'Parameter Reifezahl'!$G$3/I19*'Parameter Reifezahl'!M3/I19)","v":19.119319310767985},{"$f":"IF($C$16=\"\",\"\",$C$16*J53/$C$44+($C$16*J53/$C$44*'Parameter Reifezahl'!$G$3)/J19+(($C$16*J53/$C$44*'Parameter Reifezahl'!$G$3)/J19)*$C$52/J19+(($C$16*J53/$C$44*'Parameter Reifezahl'!$G$3)/J19)*$C$52/J19*'Parameter Reifezahl'!$G$3/J19+(($C$16*J53/$C$44*'Parameter Reifezahl'!$G$3)/J19)*$C$52/J19*'Parameter Reifezahl'!$G$3/J19*'Parameter Reifezahl'!N3/J19)","v":17.359851940809978},{"$f":"IF($C$16=\"\",\"\",$C$16*K53/$C$44+($C$16*K53/$C$44*'Parameter Reifezahl'!$G$3)/K19+(($C$16*K53/$C$44*'Parameter Reifezahl'!$G$3)/K19)*$C$52/K19+(($C$16*K53/$C$44*'Parameter Reifezahl'!$G$3)/K19)*$C$52/K19*'Parameter Reifezahl'!$G$3/K19+(($C$16*K53/$C$44*'Parameter Reifezahl'!$G$3)/K19)*$C$52/K19*'Parameter Reifezahl'!$G$3/K19*'Parameter Reifezahl'!O3/K19)","v":15.887191790372045},{"$f":"IF($C$16=\"\",\"\",$C$16*L53/$C$44+($C$16*L53/$C$44*'Parameter Reifezahl'!$G$3)/L19+(($C$16*L53/$C$44*'Parameter Reifezahl'!$G$3)/L19)*$C$52/L19+(($C$16*L53/$C$44*'Parameter Reifezahl'!$G$3)/L19)*$C$52/L19*'Parameter Reifezahl'!$G$3/L19+(($C$16*L53/$C$44*'Parameter Reifezahl'!$G$3)/L19)*$C$52/L19*'Parameter Reifezahl'!$G$3/L19*'Parameter Reifezahl'!P3/L19)","v":14.637860258252315},{"$f":"IF($C$16=\"\",\"\",$C$16*M53/$C$44+($C$16*M53/$C$44*'Parameter Reifezahl'!$G$3)/M19+(($C$16*M53/$C$44*'Parameter Reifezahl'!$G$3)/M19)*$C$52/M19+(($C$16*M53/$C$44*'Parameter Reifezahl'!$G$3)/M19)*$C$52/M19*'Parameter Reifezahl'!$G$3/M19+(($C$16*M53/$C$44*'Parameter Reifezahl'!$G$3)/M19)*$C$52/M19*'Parameter Reifezahl'!$G$3/M19*'Parameter Reifezahl'!Q3/M19)","v":13.565581142002793},{"$f":"IF($C$16=\"\",\"\",$C$16*N53/$C$44+($C$16*N53/$C$44*'Parameter Reifezahl'!$G$3)/N19+(($C$16*N53/$C$44*'Parameter Reifezahl'!$G$3)/N19)*$C$52/N19+(($C$16*N53/$C$44*'Parameter Reifezahl'!$G$3)/N19)*$C$52/N19*'Parameter Reifezahl'!$G$3/N19+(($C$16*N53/$C$44*'Parameter Reifezahl'!$G$3)/N19)*$C$52/N19*'Parameter Reifezahl'!$G$3/N19*'Parameter Reifezahl'!R3/N19)","v":12.635875003993199}]
[null,"in dt/ha für Mais mit hoher Reifezahl"]
[]
[]
[null,{"$f":"IF(Beraterdaten!C5=\"\",\"\",\"Kontakt: \"&Beraterdaten!C4&\" \"&Beraterdaten!C5&\", \"&Beraterdaten!C6&\", \"&Beraterdaten!C7&\", Tel.: \"&Beraterdaten!C8&\", \"&Beraterdaten!C4&\".\"&Beraterdaten!C5&\"@LLH.hessen.de\")","v":"Kontakt: Bernhard Blackert, FG 11.1 \"Beratungsteam Ökonomie\", Zentrale Kassel, Tel.: 0561/7299-330, Bernhard.Blackert@LLH.hessen.de"}]
[]
[]
[]
[]
[]
[]
[]
[]
[]
[]
[]
[]
[]
[]
[]
[]
[]
[]
[]
[null,"Prozent",100,null,null,null,"Berechnung Zelle G 13",null,{"$f":"G11*100-(C11-C13)/10","v":27.600000000000009}]
[null,"Regelfeuchte",14]
[null,"Schwundfaktor",1.3]
[null,"Trochnungskosten je dt Sorte 2",{"$f":"VLOOKUP(G13,Trocknungstabelle!B6:C196,2)","v":4.78}]
[null,"Trocknungskosten je dt Sorte 1",{"$f":"VLOOKUP(G11,Trocknungstabelle!B6:C196,2)","v":5.65}]
[]
[]
["H1","Hilfsgrösse niedrige Reifezahl\nFormel:\n=$C$16/((100-($G$10-$c$45)*$c$46)/100)*$c$47/$C$16\n",{"$f":"$C$16/((100-($G$13*100-$C$45)*$C$46)/100)*C47/C16","v":5.8066083576287664}]
["H2","Hilfsgrösse hohe Reifezahl\nFormel:\n=$C$16/((100-($G$11-$c$45)*$c$46)/100)*$c$48/C16\n",{"$f":"$C$16/((100-($G$11*100-$C$45)*$C$46)/100)*$C$48/C16","v":7.5818572195383798}]
["y","Ertrag mit niedriger Reifezahl\nFormel:\n=(($C$52-$C$51)*$C$16)/(C19-$C$52)\n=((5,59691913-4,43407235)*100)/(13-5,59691913)",{"$f":"(($C$52-$C$51)*$C$16)/(C19-$C$52)","v":32.764896272415399},27.659853054592375,23.931176770894432,21.088367211232612,18.849245581543432,17.039974391970787,15.547614844573197,14.295606785120425,13.230212935985319,12.312604257985965,11.51402530893194,10.812726418862947]

{"sheet":"Infos zu Trocknung u. Schwund","index":5,"n_rows":11,"n_cols":2,"rows_kept":11,"cut":false,"hidden":false,"merged":[[2,0,2,1],[10,0,10,1],[4,1,4,2],[6,1,6,2],[8,1,8,2]]}
[null,{"$error":"#VALUE!"}]
[null,"Wirtschaftlichkeitsrechner Maisanbau"]
["Informationen zur Trocknung und zum Schwundfaktor"]
[]
[null,"Die Regelfeuchte für Körnermais beträgt 14 %. Die Ernte erfolgt mit Kornfeuchten zwischen\n25 und 40 %. Beim Trocknungsvorgang bedeutet jedes abgegebene Prozent Wasser einen\nGewichtsverlust von 1,176 kg/dt. woraus sich, aufgerundet, ein theoretischer Schwundfaktor\nvon 1,2 errechnet.\nDurch Abrieb, Staub, Besatz und Bruchkorn liegen die Verhältnisse in der Praxis komplexer und\nmit zunehmender Erntefeuchte entsteht bei Trocknung ein höherer Gewichtsverlust als der\ntheoretisch errechnete.\nIn Deutschland wird meist mit einem konstanten Schwundfaktor von 1,3 oder 1,35 gerechnet."]
[]
[null,"Bei Anwendung des Schwundfaktors wird wie folgt gerechnet:\n\n(((Ausgangsfeuchte - Endfeuchte) x Schwundfaktor - 100) x (-1)/100) x Gewicht feucht\n\nAls Ergebnis erhält man die Menge trockene Ware.\n\nRechenbeispiel:\nKornfeuchte bei Ernte 32 %;   Regelfeuchte 14 %; \nSchwundfaktor des Handels 1,3;   Erntemenge feucht 150 dt\n \n(32 - 14) x 1,3 = 23,4 -100 = - 76,6 x -1 = 76,6 / 100 = 0,766\n\n150 dt x 0,766 = 114,9 dt trockene Ware bei 14 % Kornfeuchte"]
[]
[null,"Trocknungskosten\nDie Trocknungskosten errechnen sich aus dem Produkt von erntefeuchter Ware und der\nKosten je dt gemäß der gültigen Trocknungstabelle."]
[]
["Ansprechpartner: Bernhard Blackert, Fachgebiet 11.1 \"Beratungsteam Ökonomie\"\nKontakt:                  0561/7299-330, Bernhard.Blackert@LLH.hessen.de"]

{"sheet":"Trocknungstabelle","index":6,"n_rows":196,"n_cols":3,"rows_kept":196,"cut":false,"hidden":false,"merged":[]}
[]
[null,"Trocknungstabelle gültig für Ernte 2024"]
[]
[]
[null,"Feuchte","Preis je 100 kg"]
[null,0.21,3.94]
[null,{"$f":"B6+0.1%","v":0.21099999999999999},3.94]
[null,{"$f":"B7+0.1%","v":0.21199999999999999},3.94]
[null,0.21299999999999999,3.94]
[null,{"$f":"B9+0.1%","v":0.214},3.94]
[null,0.215,3.94]
[null,0.216,3.94]
[null,0.217,3.94]
[null,0.218,3.94]
[null,0.219,3.94]
[null,0.22,3.94]
[null,0.221,4.08]
[null,0.222,4.08]
[null,0.223,4.08]
[null,0.224,4.08]
[null,0.22500000000000001,4.08]
[null,0.22600000000000001,4.08]
[null,0.22700000000000001,4.08]
[null,0.22800000000000001,4.08]
[null,0.22900000000000001,4.08]
[null,0.23,4.22]
[null,0.23100000000000001,4.22]
[null,0.23200000000000001,4.22]
[null,0.23300000000000001,4.22]
[null,0.23400000000000001,4.22]
[null,0.23500000000000001,4.22]
[null,0.23600000000000002,4.22]
[null,0.23700000000000002,4.22]
[null,0.23800000000000002,4.22]
[null,0.23900000000000002,4.22]
[null,0.24000000000000002,4.3600000000000003]
[null,0.24100000000000002,4.3600000000000003]
[null,0.24200000000000002,4.3600000000000003]
[null,0.24300000000000002,4.3600000000000003]
[null,0.24400000000000002,4.3600000000000003]
[null,0.24500000000000002,4.3600000000000003]
[null,0.24600000000000002,4.3600000000000003]
[null,0.24700000000000003,4.3600000000000003]
[null,0.24800000000000003,4.3600000000000003]
[null,0.24900000000000003,4.3600000000000003]
[null,0.25,4.5]
[null,0.251,{"$f":"3.9*1.5","v":5.85}]
[null,0.252,{"$f":"3.9*1.5","v":5.85}]
[null,0.253,5.85]
[null,0.254,5.85]
[null,0.255,5.85]
[null,0.25600000000000001,5.85]
[null,0.25700000000000001,5.85]
[null,0.25800000000000001,5.85]
[null,0.25900000000000001,5.85]
[null,0.26,4.6399999999999997]
[null,0.26100000000000001,{"$f":"3.99*1.5","v":5.9850000000000003}]
[null,0.26200000000000001,{"$f":"3.99*1.5","v":5.9850000000000003}]
[null,0.26300000000000001,5.9850000000000003]
[null,0.26400000000000001,5.9850000000000003]
[null,0.26500000000000001,5.9850000000000003]
[null,0.26600000000000001,5.9850000000000003]
[null,0.26700000000000002,5.9850000000000003]
[null,0.26800000000000002,5.9850000000000003]
[null,0.26900000000000002,5.9850000000000003]
[null,0.27,4.78]
[null,0.27100000000000002,4.78]
[null,0.27200000000000002,4.78]
[null,0.27300000000000002,4.78]
[null,0.27400000000000002,4.78]
[null,0.27500000000000002,4.78]
[null,{"$f":"B71+0.1%","v":0.27600000000000002},4.78]
[null,0.27700000000000002,4.78]
[null,0.27800000000000002,4.78]
[null,0.27900000000000003,4.78]
[null,0.28000000000000003,4.92]
[null,0.28100000000000003,4.92]
[null,0.28200000000000003,4.92]
[null,0.28300000000000003,4.92]
[null,0.28400000000000003,4.92]
[null,0.28500000000000003,4.92]
[null,0.28600000000000003,4.92]
[null,0.28700000000000003,4.92]
[null,0.28800000000000003,4.92]
[null,0.28900000000000003,4.92]
[null,0.29000000000000004,5.0599999999999996]
[null,0.29100000000000004,5.0599999999999996]
[null,0.29200000000000004,5.0599999999999996]
[null,0.29300000000000004,5.0599999999999996]
[null,0.29400000000000004,5.0599999999999996]
[null,0.29500000000000004,5.0599999999999996]
[null,0.29600000000000004,5.0599999999999996]
[null,0.29700000000000004,5.0599999999999996]
[null,0.29800000000000004,5.0599999999999996]
[null,0.29900000000000004,5.0599999999999996]
[null,0.30000000000000004,5.2]
[null,0.30100000000000005,5.2]
[null,0.30200000000000005,5.2]
[null,0.30300000000000005,5.2]
[null,0.30400000000000005,5.2]
[null,0.30500000000000005,5.2]
[null,0.30600000000000005,5.2]
[null,0.30700000000000005,5.2]
[null,0.30800000000000005,5.2]
[null,0.30900000000000005,5.2]
[null,0.31000000000000005,5.35]
[null,0.31100000000000005,{"$f":"4.45*1.5","v":6.6750000000000007}]
[null,0.31200000000000006,{"$f":"4.45*1.5","v":6.6750000000000007}]
[null,0.31300000000000006,6.6750000000000007]
[null,0.31400000000000006,6.6750000000000007]
[null,0.31500000000000006,6.6750000000000007]
[null,0.31600000000000006,6.6750000000000007]
[null,0.31700000000000006,6.6750000000000007]
[null,0.31800000000000006,6.6750000000000007]
[null,0.31900000000000006,6.6750000000000007]
[null,0.32000000000000006,5.5]
[null,0.32100000000000006,5.5]
[null,0.32200000000000006,5.5]
[null,0.32300000000000006,5.5]
[null,0.32400000000000007,5.5]
[null,0.32500000000000007,5.5]
[null,0.32600000000000007,5.5]
[null,0.32700000000000007,5.5]
[null,0.32800000000000007,5.5]
[null,0.32900000000000007,5.5]
[null,0.33000000000000007,5.65]
[null,0.33100000000000007,5.65]
[null,0.33200000000000007,5.65]
[null,0.33300000000000007,5.65]
[null,0.33400000000000007,5.65]
[null,0.33500000000000008,5.65]
[null,0.33600000000000008,5.65]
[null,0.33700000000000008,5.65]
[null,0.33800000000000008,5.65]
[null,0.33900000000000008,5.65]
[null,{"$f":"B135+0.1%","v":0.34000000000000008},5.8]
[null,0.34100000000000008,5.8]
[null,0.34200000000000008,5.8]
[null,0.34300000000000008,5.8]
[null,0.34400000000000008,5.8]
[null,0.34500000000000008,5.8]
[null,0.34600000000000009,5.8]
[null,0.34700000000000009,5.8]
[null,0.34800000000000009,5.8]
[null,0.34900000000000009,5.8]
[null,0.35000000000000009,5.95]
[null,0.35100000000000009,5.95]
[null,0.35200000000000009,5.95]
[null,0.35300000000000009,5.95]
[null,0.35400000000000009,5.95]
[null,0.35500000000000009,5.95]
[null,0.35600000000000009,5.95]
[null,0.3570000000000001,5.95]
[null,0.3580000000000001,5.95]
[null,0.3590000000000001,5.95]
[null,0.3600000000000001,6.1]
[null,0.3610000000000001,6.1]
[null,0.3620000000000001,6.1]
[null,0.3630000000000001,6.1]
[null,0.3640000000000001,6.1]
[null,0.3650000000000001,6.1]
[null,0.3660000000000001,6.1]
[null,0.3670000000000001,6.1]
[null,0.3680000000000001,6.1]
[null,0.36900000000000011,6.1]
[null,0.37000000000000011,6.25]
[null,0.37100000000000011,6.25]
[null,0.37200000000000011,6.25]
[null,0.37300000000000011,6.25]
[null,0.37400000000000011,6.25]
[null,0.37500000000000011,6.25]
[null,0.37600000000000011,6.25]
[null,0.37700000000000011,6.25]
[null,0.37800000000000011,6.25]
[null,0.37900000000000011,6.25]
[null,0.38000000000000012,6.4]
[null,0.38100000000000012,6.4]
[null,0.38200000000000012,6.4]
[null,0.38300000000000012,6.4]
[null,0.38400000000000012,6.4]
[null,0.38500000000000012,6.4]
[null,0.38600000000000012,6.4]
[null,0.38700000000000012,6.4]
[null,0.38800000000000012,6.4]
[null,0.38900000000000012,6.4]
[null,0.39000000000000012,6.55]
[null,0.39100000000000013,6.55]
[null,0.39200000000000013,6.55]
[null,0.39300000000000013,6.55]
[null,0.39400000000000013,6.55]
[null,0.39500000000000013,6.55]
[null,0.39600000000000013,6.55]
[null,0.39700000000000013,6.55]
[null,0.39800000000000013,6.55]
[null,0.39900000000000013,6.55]
[null,0.40000000000000013,6.7]

{"sheet":"Sorten","index":7,"n_rows":29,"n_cols":6,"rows_kept":29,"cut":false,"hidden":false,"merged":[[1,2,1,3]]}
[null,"Kornanteil der Einzelsorten laut Angaben des Züchters"]
[null,"Sortentyp","Kornanteil an der TM in %"]
[null,"ausgeglichen",{"$f":"52%*F11","v":0.52},"50 - 55%"]
[null,"Energiemais",{"$f":"45%*F11","v":0.45},"40 - 50%"]
[null,"kolbenbetont",{"$f":"55%*F11","v":0.55000000000000004},"55 - 60%"]
[null,"Körner spezial",{"$f":"59%*F11","v":0.59}]
[null,"COLISEE",{"$f":"52.8%*F11","v":0.52800000000000002},"früh"]
[null,"FABREGAS",{"$f":"49.2%*F11","v":0.49200000000000005}]
[null,"KOMPETENS",{"$f":"51.1%*F11","v":0.51100000000000001},null,"Abweichung vom Durchschnitt, Einschätzung Jahreseffekt"]
[null,"KWS STABIL",{"$f":"52%*F11","v":0.52}]
[null,"BARROS",{"$f":"49.2%*F11","v":0.49200000000000005},"mittelfrüh","Faktor",1]
[null,"CAROLINIO KWS",{"$f":"50.3%*F11","v":0.503}]
[null,"CORFINIO KWS",{"$f":"44.9%*F11","v":0.44900000000000001}]
[null,"FERNANDEZ",{"$f":"49.6%*F11","v":0.496}]
[null,"FREDERICO KWS",{"$f":"50.5%*F11","v":0.505}]
[null,"GROSSO",{"$f":"52.1%*F11","v":0.52100000000000002}]
[null,"KWS 2322",{"$f":"51.7%*F11","v":0.51700000000000002}]
[null,"MILLESIM",{"$f":"52.5%*F11","v":0.52500000000000002}]
[null,"PANVINIO",{"$f":"50%*F11","v":0.5}]
[null,"RENATINIO",{"$f":"50.7%*F11","v":0.50700000000000001}]
[null,"RICARDINIO",{"$f":"54.7%*F11","v":0.54700000000000004}]
[null,"RIVALDINIO KWS",{"$f":"52%*F11","v":0.52}]
[null,"RONALDINIO",{"$f":"52.7%*F11","v":0.52700000000000002}]
[null,"SIMPATICO KWS",{"$f":"47.5%*F11","v":0.47499999999999998}]
[null,"TORRES",{"$f":"54.4%*F11","v":0.54400000000000004}]
[null,"AMPATICO KWS",{"$f":"51.1%*F11","v":0.51100000000000001},"spät"]
[null,"KILOMERIS",{"$f":"45.9%*F11","v":0.45899999999999996}]
[null,"KWS 9361",{"$f":"51.5%*F11","v":0.51500000000000001}]
[null,"WALTERINIO KWS",{"$f":"53%*F11","v":0.53}]

{"sheet":"Beraterdaten","index":8,"n_rows":8,"n_cols":3,"rows_kept":8,"cut":false,"hidden":false,"merged":[]}
[]
[null,"Kontaktdaten der Beraterin/des Beraters"]
[]
[null,"Vorname","Bernhard"]
[null,"Name","Blackert"]
[null,"Fachgebiet","FG 11.1 \"Beratungsteam Ökonomie\""]
[null,"LLH-Standort","Zentrale Kassel"]
[null,"Telefonnummer","0561/7299-330"]

{"sheet":"Entzüge und Nährstoffpreise","index":9,"n_rows":13,"n_cols":7,"rows_kept":13,"cut":false,"hidden":false,"merged":[[10,4,10,6]]}
[]
[null,"Entzüge je dt","N","P2O5","K2O","MgO","Nährstoff-wert"]
[null,"Energiemais bei \n100 % TM",1.33,0.55000000000000004,1.5,0.36,{"$f":"C3*C7+D3*D7+E3*E7+F3*F7","v":4.2488999999999999}]
[null,"Körnermais bei \n100 % TM",{"$f":"1.51/0.86","v":1.7558139534883721},{"$f":"0.8/0.86","v":0.93023255813953498},{"$f":"0.5/0.86","v":0.58139534883720934},{"$f":"0.25/0.86","v":0.29069767441860467},{"$f":"C4*C7+D4*D7+E4*E7+F4*F7","v":4.621511627906977}]
[null,"Nährstoffrückführung je t bzw m3"]
[null,"Substrat",3.34,1.77,3.77,0.5,{"$f":"C6*C7+D6*D7+E6*E7+F6*F7","v":10.7562}]
[null,"Nährstoffpreis",1.45,1.4,0.76,1.1399999999999999]
[]
[]
[]
[null,null,14.5,{"$f":"((G3)*'Berechnung Gleichg.preis'!D11*10)-('Berechnung Gleichg.preis'!D11/C12*100)*(G6*'Berechnung Gleichg.preis'!D15)+(('Berechnung Gleichg.preis'!D11/C12*100*C13))*'Berechnung Gleichg.preis'!D15-('Berechnung Gleichg.preis'!D11*VLOOKUP('Berechnung Gleichg.preis'!D9,Sorten!B3:C29,2,FALSE))*G4*10","v":37.73721438953487},"Vorteil Düngekosten für Körnermais"]
[null,"TM-Gehalt Biogasmais",32]
[null,"Gülleausbringung",{"$f":"'Berechnung Gleichg.preis'!D17","v":5.5}]

{"sheet":"Standardwerte","index":10,"n_rows":27,"n_cols":3,"rows_kept":27,"cut":false,"hidden":false,"merged":[]}
[]
[null,"Sortentyp","ausgeglichen"]
[]
[null,"Ertragsschätzung Silonutzung in t TM/ha ",20]
[]
[null,"Preis je t TM",71]
[]
[null,"Höhe der Gärrestrücklieferung in % des Frischmasseertrages",0.75]
[]
[null,"Ausbringkosten Gärrest in €/m3",3]
[]
[]
[]
[]
[null,"Kornfeuchte Erntegut in%",0.31000000000000005]
[]
[null,"Regelfeuchte in %",0.14000000000000001]
[]
[null,"Schwundfaktor",1.3]
[]
[null,"Kosten Körnermaisernte in €/ha",160]
[]
[null,"Kosten Abtransport Körnermais in €/ha",60]
[]
[null,"evtl. Stengel mulchen in €/ha",60]
[]
[null,"aktueller Preis Körnermais, trockene Ware in €/dt",22]

{"sheet":"Parameter Reifezahl","index":11,"n_rows":5,"n_cols":7,"rows_kept":5,"cut":false,"hidden":false,"merged":[]}
[]
[null,null,"N","P2O5","K2O","MgO","Nährstoffwert"]
[null,"Entzüge je dt Ertrag bei 86 % TM",1.51,0.8,0.5,0.25,{"$f":"C3*C5+D3*D5+E3*E5+F3*F5","v":2.9860000000000002}]
[]
[null,"Nährstoffpreis je kg Reinnährstoff",1.1000000000000001,1,0.7,0.7]